[Event "4th Memorial Warakomska-A 2020"]
[Site "Suwalki"]
[Date "2020.08.07"]
[Round "2.1"]
[White "Rudzinska, Michalina"]
[Black "Gumularz, Szymon"]
[Result "0-1"]
[ECO "C76"]
[WhiteElo "2080"]
[BlackElo "2513"]
[Annotator "ChessBase"]
[PlyCount "62"]
[EventDate "2020.08.06"]
[EventType "swiss"]
[EventCountry "POL"]
[SourceTitle "playchess.com"]
[Source "ChessBase"]
[SourceQuality "1"]
[TimeControl "40/5400+30:1800+30"]

1. e4 {[%emt 0:00:00]} e5 {[%emt 0:00:06]} 2. Nf3 {[%emt 0:00:00]} Nc6 {[%emt 0:00:09]} 3. Bb5 {[%emt 0:00:00]} a6 {[%emt 0:00:47]} 4. Ba4 {[%emt 0:00:00]} g6 {[%emt 0:01:39]} 5. c3 {[%emt 0:01:13]} d6 {[%emt 0:00:35]} 6. d4 {[%emt 0:00:29]} Bd7 {[%emt 0:00:11]} 7. O-O {[%emt 0:00:23]} Bg7 {[%emt 0:00:10]} 8. d5 {[%emt 0:05:06]} Nce7 {[%emt 0:00:52]} 9. Bxd7+ {[%emt 0:00:18]} Qxd7 {[%emt 0:00:09]} 10. c4 {[%emt 0:00:08]} h6 {[%emt 0:01:53]} 11. Nc3 {[%emt 0:02:32]} f5 {[%emt 0:00:12]} 12. b4 {[%emt 0:06:41]} Nf6 {[%emt 0:00:25]} 13. exf5 {[%emt 0:03:57]} gxf5 {[%emt 0:01:33]} 14. c5 {[%emt 0:01:50]} O-O {[%emt 0:00:23]} 15. Qb3 {[%emt 0:11:14]} Kh7 {[%emt 0:05:56]} 16. Rd1 {[%emt 0:00:38]} Rg8 {[%emt 0:06:36]} 17. Rb1 {[%emt 0:05:00]} Bh8 {[%emt 0:36:59]} 18. b5 {[%emt 0:15:09]} Qe8 {[%emt 0:17:17]} 19. b6 {[%emt 0:11:42]} Nd7 {[%emt 0:01:23]} 20. Na4 {[%emt 0:06:55]} e4 {[%emt 0:08:22]} 21. Ne1 {[%emt 0:04:48]} Qh5 {[%emt 0:08:38]} 22. bxc7 {[%emt 0:03:18]} Ne5 {[%emt 0:05:19]} 23. Bf4 {[%emt 0:05:10]} N7g6 {[%emt 0:00:40]} 24. Bg3 {[%emt 0:05:13]} f4 {[%emt 0:00:32]} 25. Qxb7 {[%emt 0:01:02]} Rac8 {[%emt 0:00:05]} 26. Nb6 {[%emt 0:03:01]} fxg3 {[%emt 0:00:04]} 27. fxg3 {[%emt 0:00:16]} Nf4 {[%emt 0:01:31]} 28. gxf4 {[%emt 0:05:54]} Nf3+ {[%emt 0:00:28]} 29. Nxf3 {[%emt 0:00:50]} Rxg2+ {[%emt 0:00:19]} 30. Kh1 {[%emt 0:00:50]} Qxf3 {[%emt 0:00:05]} 31. Rb3 {[%emt 0:00:43]} Rg1+ {[%emt 0:00:14]} 0-1

[Event "4th Memorial Warakomska-A 2020"]
[Site "Suwalki"]
[Date "2020.08.07"]
[Round "2.3"]
[White "Praczukowski, Stanislaw"]
[Black "Goluch, Piotr"]
[Result "0-1"]
[ECO "B57"]
[WhiteElo "2132"]
[BlackElo "2376"]
[Annotator "ChessBase"]
[PlyCount "94"]
[EventDate "2020.08.06"]
[EventType "swiss"]
[EventCountry "POL"]
[SourceTitle "playchess.com"]
[Source "ChessBase"]
[SourceQuality "1"]
[TimeControl "40/5400+30:1800+30"]

1. e4 {[%emt 0:00:00]} c5 {[%emt 0:00:57]} 2. Nf3 {[%emt 0:00:00]} Nc6 {[%emt 0:01:06]} 3. d4 {[%emt 0:00:00]} cxd4 {[%emt 0:00:05]} 4. Nxd4 {[%emt 0:00:00]} Nf6 {[%emt 0:00:03]} 5. Nc3 {[%emt 0:00:04]} d6 {[%emt 0:01:21]} 6. Bc4 {[%emt 0:00:37]} Qb6 {[%emt 0:03:01]} 7. Nb3 {[%emt 0:02:42]} e6 {[%emt 0:00:06]} 8. Bf4 {[%emt 0:03:37]} Ne5 {[%emt 0:00:55]} 9. Be2 {[%emt 0:00:17]} a6 {[%emt 0:04:04]} 10. O-O {[%emt 0:03:02]} Be7 {[%emt 0:04:08]} 11. Be3 {[%emt 0:01:29]} Qc7 {[%emt 0:00:05]} 12. f4 {[%emt 0:01:58]} Ned7 {[%emt 0:02:59]} 13. a4 {[%emt 0:15:47]} b6 {[%emt 0:04:33]} 14. Bf3 {[%emt 0:03:50]} Bb7 {[%emt 0:00:16]} 15. g4 {[%emt 0:07:15]} Nc5 {[%emt 0:04:33]} 16. Nxc5 {[%emt 0:03:41]} bxc5 {[%emt 0:00:19]} 17. g5 {[%emt 0:03:52]} Nd7 {[%emt 0:00:09]} 18. Bg2 {[%emt 0:04:15]} g6 {[%emt 0:01:03]} 19. Qg4 {[%emt 0:02:36]} h6 {[%emt 0:11:00]} 20. f5 {[%emt 0:11:05]} Ne5 {[%emt 0:00:19]} 21. Qh3 {[%emt 0:01:49]} O-O-O {[%emt 0:05:17]} 22. f6 {[%emt 0:01:42]} Bf8 {[%emt 0:00:04]} 23. Nd5 {[%emt 0:02:55]} Qc6 {[%emt 0:04:08]} 24. b4 {[%emt 0:02:59]} cxb4 {[%emt 0:00:39]} 25. Nxb4 {[%emt 0:12:10]} Qc4 {[%emt 0:01:31]} 26. Nd5 {[%emt 0:01:25]} Kb8 {[%emt 0:03:12]} 27. Nb6 {[%emt 0:01:44]} Qe2 {[%emt 0:00:43]} 28. Rab1 {[%emt 0:02:21]} Qg4 {[%emt 0:01:09]} 29. gxh6 {[%emt 0:07:31]} Qxh3 {[%emt 0:05:01]} 30. Bxh3 {[%emt 0:00:02]} Bxh6 {[%emt 0:00:18]} 31. Bxh6 {[%emt 0:00:36]} Rxh6 {[%emt 0:00:06]} 32. Rb3 {[%emt 0:02:24]} Kc7 {[%emt 0:04:16]} 33. Bg2 {[%emt 0:01:07]} a5 {[%emt 0:01:42]} 34. Rfb1 {[%emt 0:00:50]} Bc6 {[%emt 0:00:24]} 35. h3 {[%emt 0:00:43]} g5 {[%emt 0:02:08]} 36. Rc3 {[%emt 0:00:21]} Rb8 {[%emt 0:06:43]} 37. Rcb3 {[%emt 0:00:06]} Rhh8 {[%emt 0:00:11]} 38. Bf1 {[%emt 0:01:16]} Bxe4 {[%emt 0:07:34]} 39. Bg2 {[%emt 0:00:07]} Bc6 {[%emt 0:01:52]} 40. Bxc6 {[%emt 0:00:00]} Nxc6 {[%emt 0:00:00]} 41. Nc4 {[%emt 0:05:23]} Rxb3 {[%emt 0:02:59]} 42. Rxb3 {[%emt 0:01:19]} d5 {[%emt 0:01:05]} 43. Ne3 {[%emt 0:01:44]} Nd4 {[%emt 0:06:12]} 44. Rd3 {[%emt 0:00:59]} Ne2+ {[%emt 0:01:15]} 45. Kf1 {[%emt 0:03:02]} Nf4 {[%emt 0:00:57]} 46. Rb3 {[%emt 0:01:55]} Rxh3 {[%emt 0:03:08]} 47. Kf2 {[%emt 0:00:49]} Rh4 {[%emt 0:04:09]} 0-1

[Event "4th Memorial Warakomska-A 2020"]
[Site "Suwalki"]
[Date "2020.08.07"]
[Round "2.4"]
[White "Grabarczyk, Miroslaw"]
[Black "Shilov, Sergej"]
[Result "1-0"]
[ECO "E15"]
[WhiteElo "2366"]
[BlackElo "2121"]
[Annotator "ChessBase"]
[PlyCount "130"]
[EventDate "2020.08.06"]
[EventType "swiss"]
[EventCountry "POL"]
[SourceTitle "playchess.com"]
[Source "ChessBase"]
[SourceQuality "1"]
[TimeControl "40/5400+30:1800+30"]

1. d4 {[%emt 0:00:00]} Nf6 {[%emt 0:00:40]} 2. c4 {[%emt 0:00:00]} e6 {[%emt 0:01:06]} 3. Nf3 {[%emt 0:01:14]} b6 {[%emt 0:00:40]} 4. g3 {[%emt 0:00:21]} Ba6 {[%emt 0:02:03]} 5. b3 {[%emt 0:00:18]} d5 {[%emt 0:01:10]} 6. Bg2 {[%emt 0:01:02]} Bb4+ {[%emt 0:03:52]} 7. Bd2 {[%emt 0:01:48]} Be7 {[%emt 0:00:26]} 8. Bc3 {[%emt 0:02:00]} Ne4 {[%emt 0:05:59]} 9. O-O {[%emt 0:04:46]} O-O {[%emt 0:01:07]} 10. Bb2 {[%emt 0:05:42]} Nd7 {[%emt 0:03:05]} 11. Nc3 {[%emt 0:07:34]} Nxc3 {[%emt 0:04:05]} 12. Bxc3 {[%emt 0:00:09]} c6 {[%emt 0:00:14]} 13. Nd2 {[%emt 0:02:26]} f5 {[%emt 0:02:43]} 14. a4 {[%emt 0:09:18]} Nf6 {[%emt 0:05:14]} 15. a5 {[%emt 0:08:01]} Ne4 {[%emt 0:03:14]} 16. Nxe4 {[%emt 0:04:40]} fxe4 {[%emt 0:00:22]} 17. Qc2 {[%emt 0:00:38]} b5 {[%emt 0:01:38]} 18. c5 {[%emt 0:01:16]} Bf6 {[%emt 0:02:42]} 19. b4 {[%emt 0:00:17]} Qe7 {[%emt 0:00:43]} 20. f3 {[%emt 0:01:08]} exf3 {[%emt 0:07:40]} 21. exf3 {[%emt 0:00:45]} g5 {[%emt 0:00:36]} 22. Rae1 {[%emt 0:04:29]} Rae8 {[%emt 0:00:34]} 23. f4 {[%emt 0:04:21]} Qg7 {[%emt 0:01:00]} 24. Qd3 {[%emt 0:00:51]} g4 {[%emt 0:01:23]} 25. h3 {[%emt 0:04:29]} Bc8 {[%emt 0:03:13]} 26. hxg4 {[%emt 0:04:08]} Qxg4 {[%emt 0:00:09]} 27. Kf2 {[%emt 0:01:32]} Qf5 {[%emt 0:01:05]} 28. Ke2 {[%emt 0:01:41]} Re7 {[%emt 0:02:14]} 29. Rf3 {[%emt 0:08:23]} Rg7 {[%emt 0:00:38]} 30. Rh1 {[%emt 0:00:33]} Bd7 {[%emt 0:01:20]} 31. Bh3 {[%emt 0:01:09]} Qxd3+ {[%emt 0:04:25]} 32. Rxd3 {[%emt 0:04:09]} Kf7 {[%emt 0:00:59]} 33. Bg2 {[%emt 0:02:38]} Rfg8 {[%emt 0:02:07]} 34. Kf2 {[%emt 0:01:17]} Bd8 {[%emt 0:02:08]} 35. Re3 {[%emt 0:01:40]} Bc7 {[%emt 0:03:21]} 36. Rh4 {[%emt 0:01:31]} Bd8 {[%emt 0:01:16]} 37. Rh6 {[%emt 0:00:25]} Rh8 {[%emt 0:02:09]} 38. Bf3 {[%emt 0:01:40]} Bf6 {[%emt 0:02:50]} 39. Re1 {[%emt 0:01:24]} Ke7 {[%emt 0:02:25]} 40. g4 {[%emt 0:00:00]} Rg6 {[%emt 0:00:00]} 41. Rh2 {[%emt 0:03:55]} Bg7 {[%emt 0:04:33]} 42. g5 {[%emt 0:11:06]} Bf8 {[%emt 0:09:48]} 43. Bd2 {[%emt 0:02:04]} Bg7 {[%emt 0:08:11]} 44. Be3 {[%emt 0:01:57]} e5 {[%emt 0:00:58]} 45. fxe5 {[%emt 0:03:15]} Bf5 {[%emt 0:00:47]} 46. Kg3 {[%emt 0:03:23]} Re6 {[%emt 0:02:13]} 47. Bg4 {[%emt 0:00:57]} Bg6 {[%emt 0:00:53]} 48. Rf1 {[%emt 0:01:43]} Rf8 {[%emt 0:01:20]} 49. Rfh1 {[%emt 0:04:52]} Rh8 {[%emt 0:01:37]} 50. Bd2 {[%emt 0:00:59]} Be4 {[%emt 0:01:26]} 51. Rf1 {[%emt 0:01:32]} Rf8 {[%emt 0:01:23]} 52. Rxf8 {[%emt 0:03:40]} Bxf8 {[%emt 0:00:44]} 53. Bxe6 {[%emt 0:01:33]} Kxe6 {[%emt 0:00:37]} 54. g6 {[%emt 0:00:59]} Bxg6 {[%emt 0:00:50]} 55. Bg5 {[%emt 0:00:38]} a6 {[%emt 0:08:33]} 56. Kf4 {[%emt 0:01:02]} Bf5 {[%emt 0:01:18]} 57. Bd8 {[%emt 0:00:48]} Be4 {[%emt 0:03:03]} 58. Kg5 {[%emt 0:00:36]} Bd3 {[%emt 0:03:53]} 59. Rf2 {[%emt 0:00:36]} Bg7 {[%emt 0:00:44]} 60. Bc7 {[%emt 0:00:38]} Ke7 {[%emt 0:05:06]} 61. Bd6+ {[%emt 0:00:42]} Ke8 {[%emt 0:00:32]} 62. Rf4 {[%emt 0:00:49]} Be4 {[%emt 0:00:48]} 63. e6 {[%emt 0:00:39]} Bg6 {[%emt 0:01:10]} 64. Rf2 {[%emt 0:00:37]} Kd8 {[%emt 0:01:11]} 65. Rf7 {[%emt 0:00:35]} Ke8 1-0

[Event "4th Memorial Warakomska-A 2020"]
[Site "Suwalki"]
[Date "2020.08.07"]
[Round "2.5"]
[White "Jarocka, Liwia"]
[Black "Godzwon, Iwo"]
[Result "1/2-1/2"]
[ECO "B46"]
[WhiteElo "1934"]
[BlackElo "2347"]
[Annotator "ChessBase"]
[PlyCount "74"]
[EventDate "2020.08.06"]
[EventType "swiss"]
[EventCountry "POL"]
[SourceTitle "playchess.com"]
[Source "ChessBase"]
[SourceQuality "1"]
[TimeControl "40/5400+30:1800+30"]

1. e4 {[%emt 0:00:00]} c5 {[%emt 0:00:00]} 2. Nf3 {[%emt 0:00:00]} e6 {[%emt 0:00:00]} 3. d4 {[%emt 0:00:00]} cxd4 {[%emt 0:00:00]} 4. Nxd4 {[%emt 0:00:00]} Nc6 {[%emt 0:00:00]} 5. Nc3 {[%emt 0:00:40]} a6 {[%emt 0:00:02]} 6. Be2 {[%emt 0:00:18]} d6 {[%emt 0:00:19]} 7. Be3 {[%emt 0:00:13]} Nf6 {[%emt 0:00:04]} 8. f4 {[%emt 0:00:31]} Be7 {[%emt 0:00:38]} 9. Qd2 {[%emt 0:00:19]} Qc7 {[%emt 0:07:56]} 10. O-O-O {[%emt 0:08:36]} Na5 {[%emt 0:14:31]} 11. g4 {[%emt 0:05:18]} Nc4 12. Bxc4 Qxc4 13. g5 Nd7 14. Rhe1 Nc5 15. Nb3 Nxe4 16. Nxe4 Qxe4 17. Bc5 Qc6 18. Bxd6 Qxd6 19. Qxd6 Bxd6 20. Rxd6 h6 21. g6 fxg6 22. Nc5 O-O 23. Re4 g5 24. fxg5 hxg5 25. Na4 e5 26. Nb6 Bf5 27. Rxe5 Rae8 28. Rdd5 g6 29. c4 Kf7 30. b4 Rh8 31. Rxe8 Kxe8 32. Rd2 Rh3 33. Kb2 g4 34. Rg2 Kd8 35. a4 Kc7 36. a5 Be4 37. Rd2 Bc6 1/2-1/2

[Event "4th Memorial Warakomska-A 2020"]
[Site "Suwalki"]
[Date "2020.08.07"]
[Round "2.6"]
[White "Lewicki, Miroslaw"]
[Black "Korbal, Arkadiusz"]
[Result "1-0"]
[ECO "B92"]
[WhiteElo "2340"]
[BlackElo "2113"]
[Annotator "ChessBase"]
[PlyCount "87"]
[EventDate "2020.08.06"]
[EventType "swiss"]
[EventCountry "POL"]
[SourceTitle "playchess.com"]
[Source "ChessBase"]
[SourceQuality "1"]
[TimeControl "40/5400+30:1800+30"]

1. e4 {[%emt 0:00:00]} c5 {[%emt 0:00:00]} 2. Nf3 {[%emt 0:00:00]} d6 {[%emt 0:00:00]} 3. d4 {[%emt 0:00:00]} cxd4 {[%emt 0:00:00]} 4. Nxd4 {[%emt 0:00:00]} Nf6 {[%emt 0:00:08]} 5. Nc3 {[%emt 0:00:02]} a6 {[%emt 0:00:11]} 6. Be2 {[%emt 0:00:19]} e5 {[%emt 0:00:49]} 7. Nb3 {[%emt 0:00:11]} Be7 {[%emt 0:00:35]} 8. O-O {[%emt 0:00:12]} O-O {[%emt 0:01:14]} 9. Be3 {[%emt 0:01:07]} Be6 {[%emt 0:00:58]} 10. Nd5 {[%emt 0:03:21]} Bxd5 {[%emt 0:00:59]} 11. exd5 {[%emt 0:00:06]} Nbd7 {[%emt 0:01:07]} 12. c4 {[%emt 0:03:37]} Rc8 {[%emt 0:02:37]} 13. f3 {[%emt 0:04:15]} Ne8 {[%emt 0:04:38]} 14. Qd2 {[%emt 0:02:35]} b6 {[%emt 0:04:33]} 15. Rad1 {[%emt 0:09:29]} f5 {[%emt 0:10:11]} 16. a3 {[%emt 0:07:28]} f4 {[%emt 0:04:54]} 17. Bf2 {[%emt 0:00:11]} a5 {[%emt 0:00:13]} 18. Bd3 {[%emt 0:06:12]} g6 {[%emt 0:03:57]} 19. Qe2 {[%emt 0:03:22]} Ng7 {[%emt 0:00:51]} 20. Rfe1 {[%emt 0:03:25]} Bh4 {[%emt 0:04:02]} 21. g3 {[%emt 0:00:36]} fxg3 {[%emt 0:00:33]} 22. hxg3 {[%emt 0:00:07]} Bg5 {[%emt 0:05:53]} 23. Kg2 {[%emt 0:00:08]} Nc5 {[%emt 0:03:27]} 24. Nd2 {[%emt 0:04:48]} Bxd2 {[%emt 0:04:26]} 25. Rxd2 {[%emt 0:04:51]} Nf5 {[%emt 0:04:50]} 26. Bc2 {[%emt 0:08:44]} Qg5 {[%emt 0:02:42]} 27. Rh1 {[%emt 0:00:08]} Rce8 {[%emt 0:08:09]} 28. b4 {[%emt 0:05:45]} Nd4 {[%emt 0:02:37]} 29. Be3 {[%emt 0:01:10]} Qf6 {[%emt 0:01:23]} 30. Bxd4 {[%emt 0:02:15]} exd4 {[%emt 0:00:08]} 31. Qf2 {[%emt 0:00:04]} Re3 {[%emt 0:07:33]} 32. bxc5 {[%emt 0:00:04]} Rxf3 {[%emt 0:00:06]} 33. Rf1 {[%emt 0:00:12]} Qg5 {[%emt 0:01:18]} 34. c6 {[%emt 0:02:38]} Rxf2+ {[%emt 0:05:55]} 35. Rdxf2 {[%emt 0:00:04]} Re8 {[%emt 0:02:00]} 36. Bd1 {[%emt 0:05:08]} Re7 {[%emt 0:02:42]} 37. Rf4 {[%emt 0:03:18]} d3 {[%emt 0:03:56]} 38. Bg4 {[%emt 0:03:26]} Qe5 {[%emt 0:03:12]} 39. Bd7 {[%emt 0:05:12]} d2 {[%emt 0:05:33]} 40. c7 {[%emt 0:00:00]} Qe2+ {[%emt 0:00:00]} 41. R4f2 {[%emt 0:02:10]} Qe4+ {[%emt 0:05:49]} 42. Kh2 {[%emt 0:00:12]} Re8 {[%emt 0:01:40]} 43. Bxe8 {[%emt 0:00:10]} Qxc4 {[%emt 0:00:21]} 44. Bc6 {[%emt 0:00:07]} 1-0

[Event "4th Memorial Warakomska-A 2020"]
[Site "Suwalki"]
[Date "2020.08.07"]
[Round "2.7"]
[White "Kucza, Karol"]
[Black "Jakhari, Ansh"]
[Result "1/2-1/2"]
[ECO "B99"]
[WhiteElo "2245"]
[BlackElo "1908"]
[Annotator "ChessBase"]
[PlyCount "180"]
[EventDate "2020.08.06"]
[EventType "swiss"]
[EventCountry "POL"]
[SourceTitle "playchess.com"]
[Source "ChessBase"]
[SourceQuality "1"]
[TimeControl "40/5400+30:1800+30"]

1. e4 {[%emt 0:00:00]} c5 {[%emt 0:00:00]} 2. Nf3 {[%emt 0:00:00]} d6 {[%emt 0:00:00]} 3. d4 {[%emt 0:00:00]} cxd4 {[%emt 0:00:00]} 4. Nxd4 {[%emt 0:00:03]} Nf6 {[%emt 0:00:06]} 5. Nc3 {[%emt 0:00:04]} a6 {[%emt 0:00:05]} 6. Bg5 {[%emt 0:00:04]} e6 {[%emt 0:00:21]} 7. f4 {[%emt 0:00:05]} Be7 {[%emt 0:00:30]} 8. Qf3 {[%emt 0:00:48]} Nbd7 {[%emt 0:00:09]} 9. O-O-O {[%emt 0:00:10]} Qc7 {[%emt 0:00:08]} 10. g4 {[%emt 0:06:40]} b5 {[%emt 0:00:22]} 11. Bxf6 {[%emt 0:00:23]} Nxf6 {[%emt 0:00:15]} 12. g5 {[%emt 0:00:12]} Nd7 {[%emt 0:00:08]} 13. f5 {[%emt 0:00:15]} O-O {[%emt 0:02:36]} 14. fxe6 {[%emt 0:14:00]} fxe6 {[%emt 0:03:36]} 15. Nxe6 {[%emt 0:05:48]} Rxf3 {[%emt 0:00:10]} 16. Nxc7 {[%emt 0:00:04]} Ra7 {[%emt 0:00:05]} 17. Ne8 {[%emt 0:01:47]} Bxg5+ {[%emt 0:04:02]} 18. Kb1 {[%emt 0:00:06]} Ne5 {[%emt 0:08:06]} 19. Nxd6 {[%emt 0:03:18]} Bg4 {[%emt 0:02:00]} 20. Be2 {[%emt 0:21:38]} Rxc3 {[%emt 0:03:21]} 21. Bxg4 {[%emt 0:00:07]} Nxg4 {[%emt 0:03:12]} 22. bxc3 {[%emt 0:00:16]} Nf2 {[%emt 0:00:05]} 23. Rd5 {[%emt 0:00:03]} Nxh1 {[%emt 0:00:32]} 24. Rxg5 {[%emt 0:00:04]} Nf2 {[%emt 0:02:21]} 25. Rc5 {[%emt 0:07:28]} g6 {[%emt 0:02:20]} 26. c4 {[%emt 0:07:08]} bxc4 {[%emt 0:04:02]} 27. Rxc4 {[%emt 0:00:12]} Ng4 {[%emt 0:03:05]} 28. h3 {[%emt 0:01:14]} Nf2 {[%emt 0:00:09]} 29. h4 {[%emt 0:00:53]} Rd7 {[%emt 0:03:00]} 30. Rc6 {[%emt 0:02:52]} Re7 {[%emt 0:03:48]} 31. Rxa6 {[%emt 0:03:05]} Nxe4 {[%emt 0:00:13]} 32. Kb2 {[%emt 0:19:40]} Nxd6 {[%emt 0:04:50]} 33. Rxd6 {[%emt 0:00:06]} Re4 {[%emt 0:00:02]} 34. h5 {[%emt 0:01:30]} gxh5 {[%emt 0:02:39]} 35. Kb3 {[%emt 0:00:27]} h4 {[%emt 0:01:08]} 36. a4 {[%emt 0:00:47]} h3 {[%emt 0:04:40]} 37. Rd1 {[%emt 0:06:09]} Kf7 {[%emt 0:03:28]} 38. a5 {[%emt 0:00:08]} h2 {[%emt 0:00:27]} 39. Rh1 {[%emt 0:01:04]} Rh4 {[%emt 0:01:55]} 40. a6 {[%emt 0:00:00]} Rh6 {[%emt 0:00:00]} 41. Rxh2 {[%emt 0:06:52]} Rxa6 {[%emt 0:00:37]} 42. Rxh7+ {[%emt 0:00:07]} Ke8 {[%emt 0:00:09]} 43. Rh4 {[%emt 0:01:39]} Kd7 {[%emt 0:01:50]} 44. Rc4 {[%emt 0:01:43]} Kd6 {[%emt 0:01:30]} 45. Kb4 {[%emt 0:00:06]} Rb6+ {[%emt 0:00:17]} 46. Ka5 {[%emt 0:00:57]} Rb8 {[%emt 0:01:47]} 47. c3 {[%emt 0:00:34]} Kd5 {[%emt 0:00:18]} 48. Rc7 {[%emt 0:00:05]} Kd6 {[%emt 0:00:12]} 49. Rh7 {[%emt 0:00:38]} Kc5 {[%emt 0:00:37]} 50. Ka4 {[%emt 0:00:24]} Kc4 {[%emt 0:00:38]} 51. Rc7+ {[%emt 0:00:06]} Kd5 {[%emt 0:00:07]} 52. Ka3 {[%emt 0:01:04]} Kd6 {[%emt 0:00:17]} 53. Rc4 {[%emt 0:00:05]} Kd5 {[%emt 0:00:07]} 54. Rb4 {[%emt 0:00:04]} Ra8+ {[%emt 0:00:45]} 55. Kb3 {[%emt 0:00:06]} Kc5 {[%emt 0:00:27]} 56. Rc4+ {[%emt 0:00:05]} Kb5 {[%emt 0:00:24]} 57. Rh4 {[%emt 0:00:05]} Rg8 {[%emt 0:00:29]} 58. Rh5+ {[%emt 0:00:07]} Kc6 {[%emt 0:00:13]} 59. Kb4 {[%emt 0:00:03]} Rg4+ {[%emt 0:00:32]} 60. c4 {[%emt 0:00:05]} Rg6 {[%emt 0:00:17]} 61. Ra5 {[%emt 0:00:11]} Rg1 {[%emt 0:02:07]} 62. Ra6+ {[%emt 0:00:08]} Kb7 {[%emt 0:00:06]} 63. Rh6 {[%emt 0:00:04]} Rg5 {[%emt 0:00:45]} 64. Re6 {[%emt 0:00:09]} Rf5 {[%emt 0:00:32]} 65. Kc3 {[%emt 0:00:27]} Rf4 {[%emt 0:01:22]} 66. Re5 {[%emt 0:00:14]} Kc6 {[%emt 0:00:27]} 67. Kb4 {[%emt 0:00:04]} Rf6 {[%emt 0:01:19]} 68. Ra5 {[%emt 0:00:05]} Rf1 {[%emt 0:00:34]} 69. Ra6+ {[%emt 0:00:04]} Kb7 {[%emt 0:00:11]} 70. Rd6 {[%emt 0:00:13]} Kc7 {[%emt 0:00:51]} 71. Re6 {[%emt 0:00:07]} Rf5 {[%emt 0:00:14]} 72. Kc3 {[%emt 0:00:05]} Rf4 {[%emt 0:00:08]} 73. Kd3 {[%emt 0:00:07]} Kd7 {[%emt 0:00:46]} 74. Rg6 {[%emt 0:00:06]} Kc7 {[%emt 0:00:39]} 75. Kc3 {[%emt 0:00:06]} Kb7 {[%emt 0:00:29]} 76. Re6 {[%emt 0:00:22]} Kc7 {[%emt 0:00:21]} 77. Kb4 {[%emt 0:00:06]} Rf5 {[%emt 0:00:14]} 78. Re8 {[%emt 0:00:15]} Kc6 {[%emt 0:00:47]} 79. Re4 {[%emt 0:01:35]} Kb6 {[%emt 0:00:56]} 80. Rh4 {[%emt 0:00:20]} Rg5 {[%emt 0:00:18]} 81. Rf4 {[%emt 0:01:03]} Kc6 {[%emt 0:00:53]} 82. c5 {[%emt 0:00:06]} Rg1 {[%emt 0:00:28]} 83. Rf6+ {[%emt 0:00:08]} Kc7 {[%emt 0:00:07]} 84. Rf7+ {[%emt 0:00:27]} Kc6 {[%emt 0:00:09]} 85. Rf6+ {[%emt 0:00:04]} Kc7 {[%emt 0:00:03]} 86. Rf7+ {[%emt 0:00:05]} Kc6 {[%emt 0:00:03]} 87. Kb3 {[%emt 0:00:10]} Kxc5 {[%emt 0:00:08]} 88. Rf3 {[%emt 0:00:05]} Rg5 {[%emt 0:00:09]} 89. Rd3 {[%emt 0:00:05]} Rd5 {[%emt 0:00:05]} 90. Rxd5+ {[%emt 0:00:05]} Kxd5 {[%emt 0:00:02]} 1/2-1/2

[Event "4th Memorial Warakomska-A 2020"]
[Site "Suwalki"]
[Date "2020.08.07"]
[Round "2.8"]
[White "Wolanski, Michal"]
[Black "Flis, Pawel"]
[Result "1-0"]
[ECO "A05"]
[WhiteElo "2019"]
[BlackElo "1873"]
[Annotator "ChessBase"]
[PlyCount "135"]
[EventDate "2020.08.06"]
[EventType "swiss"]
[EventCountry "POL"]
[SourceTitle "playchess.com"]
[Source "ChessBase"]
[SourceQuality "1"]
[TimeControl "40/5400+30:1800+30"]

1. Nf3 {[%emt 0:00:00]} Nf6 {[%emt 0:00:00]} 2. c4 {[%emt 0:00:00]} g6 {[%emt 0:00:00]} 3. g3 {[%emt 0:00:00]} Bg7 {[%emt 0:00:00]} 4. Bg2 {[%emt 0:00:00]} O-O {[%emt 0:00:00]} 5. O-O {[%emt 0:00:00]} d6 {[%emt 0:00:06]} 6. Nc3 {[%emt 0:00:06]} Nc6 {[%emt 0:01:01]} 7. Rb1 {[%emt 0:00:13]} e5 {[%emt 0:05:32]} 8. d3 {[%emt 0:00:06]} a5 {[%emt 0:00:11]} 9. a3 {[%emt 0:00:06]} Re8 {[%emt 0:00:46]} 10. Bg5 {[%emt 0:00:52]} h6 {[%emt 0:01:52]} 11. Bxf6 {[%emt 0:00:08]} Bxf6 {[%emt 0:00:46]} 12. b4 {[%emt 0:01:14]} axb4 {[%emt 0:00:42]} 13. axb4 {[%emt 0:00:08]} Nd4 {[%emt 0:03:30]} 14. e3 {[%emt 0:02:07]} Nxf3+ {[%emt 0:04:03]} 15. Bxf3 {[%emt 0:00:09]} c6 {[%emt 0:12:41]} 16. Qb3 {[%emt 0:01:57]} Bh3 {[%emt 0:04:26]} 17. Rfc1 {[%emt 0:02:34]} Qd7 {[%emt 0:10:25]} 18. b5 {[%emt 0:05:10]} h5 {[%emt 0:15:26]} 19. bxc6 {[%emt 0:03:02]} bxc6 {[%emt 0:00:05]} 20. Qb7 {[%emt 0:08:39]} Qxb7 {[%emt 0:12:39]} 21. Rxb7 {[%emt 0:00:10]} Ra6 {[%emt 0:00:18]} 22. Rcb1 {[%emt 0:14:17]} Kg7 {[%emt 0:03:13]} 23. R7b6 {[%emt 0:15:33]} Rxb6 {[%emt 0:09:57]} 24. Rxb6 {[%emt 0:00:09]} Ra8 {[%emt 0:00:19]} 25. Nb1 {[%emt 0:11:57]} Ra2 {[%emt 0:04:13]} 26. Bg2 {[%emt 0:12:33]} Bf5 {[%emt 0:02:12]} 27. Bf1 {[%emt 0:06:28]} d5 {[%emt 0:03:09]} 28. Rxc6 {[%emt 0:05:45]} Ra1 {[%emt 0:01:20]} 29. Rb6 {[%emt 0:00:30]} dxc4 {[%emt 0:00:07]} 30. e4 {[%emt 0:00:18]} Bd8 {[%emt 0:04:41]} 31. Rb8 {[%emt 0:00:50]} Bc7 {[%emt 0:01:02]} 32. Rb7 {[%emt 0:00:03]} Be6 {[%emt 0:00:34]} 33. dxc4 {[%emt 0:03:37]} Ba5 {[%emt 0:00:24]} 34. Kg2 {[%emt 0:02:09]} Be1 {[%emt 0:00:26]} 35. Rb2 {[%emt 0:01:21]} f5 {[%emt 0:00:23]} 36. exf5 {[%emt 0:02:15]} gxf5 {[%emt 0:00:20]} 37. Be2 {[%emt 0:00:24]} h4 {[%emt 0:00:12]} 38. gxh4 {[%emt 0:01:14]} e4 {[%emt 0:00:34]} 39. Nd2 {[%emt 0:01:04]} Kf6 {[%emt 0:00:45]} 40. Nb3 {[%emt 0:00:00]} Ra8 {[%emt 0:00:00]} 41. Nc5 {[%emt 0:04:54]} Bf7 {[%emt 0:06:41]} 42. Nd7+ {[%emt 0:05:45]} Ke6 {[%emt 0:07:55]} 43. Nb6 {[%emt 0:02:12]} Rg8+ {[%emt 0:01:32]} 44. Kf1 {[%emt 0:00:30]} Bc3 {[%emt 0:00:06]} 45. Rc2 {[%emt 0:00:58]} Be5 {[%emt 0:00:51]} 46. c5 {[%emt 0:01:57]} Bxh2 {[%emt 0:03:48]} 47. Bc4+ {[%emt 0:01:04]} Kf6 {[%emt 0:01:56]} 48. Bxf7 {[%emt 0:03:13]} Kxf7 {[%emt 0:01:49]} 49. c6 {[%emt 0:06:25]} Bc7 {[%emt 0:07:46]} 50. Nd5 {[%emt 0:00:52]} Rc8 {[%emt 0:00:15]} 51. Kg2 {[%emt 0:04:17]} Ke6 {[%emt 0:00:45]} 52. Nxc7+ {[%emt 0:01:13]} Rxc7 {[%emt 0:00:03]} 53. Kg3 {[%emt 0:01:05]} Ke5 {[%emt 0:02:38]} 54. Rc5+ {[%emt 0:01:05]} Kd4 {[%emt 0:00:20]} 55. Rxf5 {[%emt 0:00:16]} Rxc6 {[%emt 0:00:09]} 56. h5 {[%emt 0:01:06]} Rc1 {[%emt 0:00:44]} 57. Kg4 {[%emt 0:00:39]} Rg1+ {[%emt 0:00:30]} 58. Kh4 {[%emt 0:00:13]} Kd3 {[%emt 0:01:17]} 59. h6 {[%emt 0:00:36]} Rh1+ {[%emt 0:00:54]} 60. Kg5 {[%emt 0:00:10]} Ke2 {[%emt 0:00:30]} 61. Kg6 {[%emt 0:00:45]} Rh2 {[%emt 0:00:38]} 62. h7 {[%emt 0:00:40]} Rg2+ {[%emt 0:00:35]} 63. Rg5 {[%emt 0:00:57]} Rh2 {[%emt 0:00:16]} 64. Rh5 {[%emt 0:00:27]} Rg2+ {[%emt 0:01:02]} 65. Kh6 {[%emt 0:00:23]} Kxf2 {[%emt 0:00:03]} 66. h8=Q {[%emt 0:00:29]} e3 {[%emt 0:00:11]} 67. Rf5+ {[%emt 0:00:46]} Kg3 {[%emt 0:00:42]} 68. Qe5+ {[%emt 0:00:40]} 1-0